bitfinex-derivatives/quotes_ETHF0:USTF0_20260306
["timestamp","ask_amount","ask_price","bid_price","bid_amount"]
[1772829302029,0.0913854,1972.1,1971.4,0.5799256]
[1772829304834,0.09777834,1971.9,1971.2,0.5799256]
[1772829309436,0.09777834,1971.9,1971.0,0.5799256]
[1772829309437,0.09477452,1971.5,1971.0,0.5799256]
[1772829309640,0.09477452,1971.5,1971.0,0.12164318]
[1772829310543,0.09854472,1971.5,1971.0,0.12647073]
[1772829312135,0.0037702,1971.5,1971.0,0.12647073]
[1772829316744,7.19562593,1971.8,1971.0,0.12647073]
[1772829317249,0.55939613,1971.7,1971.0,0.12647073]
[1772829317648,0.56354008,1971.7,1971.0,0.12647073]
[1772829317850,0.00414395,1971.7,1971.0,0.12647073]
[1772829318549,0.56731177,1971.7,1971.0,0.12647073]
[1772829320853,0.00414395,1971.7,1971.0,0.12647073]
[1772829321249,0.55401649,1971.7,1971.0,0.12647073]
[1772829323749,0.54764563,1971.6,1971.0,0.12647073]
[1772829324144,0.54281808,1971.4,1970.6,0.5799256]
[1772829324852,0.54281808,1971.2,1970.6,0.5799256]
[1772829325250,0.54281808,1971.2,1970.6,0.58542875]
[1772829326151,0.54591182,1971.4,1970.6,0.58542875]
[1772829326353,6.42847472,1971.3,1970.6,0.58542875]
[1772829326655,0.54591182,1971.3,1970.6,0.58542875]
[1772829327351,12.91563502,1971.7,1970.6,0.58542875]
[1772829327352,4.72081851,1971.6,1970.6,0.58542875]
[1772829327550,6.96819812,1971.5,1970.6,0.58542875]
[1772829327751,6.96819812,1971.4,1970.6,0.58542875]
[1772829327950,0.54632054,1971.4,1970.6,0.58542875]
[1772829329353,6.42377007,1971.3,1970.6,0.58542875]
[1772829329553,0.55153706,1971.4,1970.6,0.58542875]
[1772829329753,6.42400773,1971.3,1970.6,0.58542875]
[1772829329953,0.55153706,1971.4,1970.6,0.58542875]
[1772829330152,6.42400499,1971.3,1970.6,0.58542875]
[1772829330354,0.55153706,1971.3,1970.6,0.58542875]
[1772829330656,0.55153706,1971.1,1970.6,0.58542875]
[1772829330953,6.42360914,1971.2,1970.3,0.5799256]
[1772829330954,0.54603391,1970.9,1970.3,0.5799256]
[1772829331854,0.54942697,1970.7,1969.8,0.5799256]
[1772829332056,0.54942697,1970.7,1969.8,0.58444448]
[1772829334559,0.54521547,1970.5,1969.8,0.58444448]
[1772829338061,0.54501686,1970.4,1969.8,0.00451888]
[1772829338560,0.54049798,1970.2,1969.6,0.01258777]
[1772829338761,0.54049798,1970.2,1969.7,0.35900213]
[1772829339357,0.54049798,1970.2,1969.8,0.60910111]
[1772829339564,0.54579873,1970.2,1969.8,0.60072393]
[1772829339756,0.54579873,1970.2,1969.8,0.6133117]
[1772829339962,0.00530075,1970.2,1969.8,0.6133117]
[1772829340264,0.57118044,1970.5,1969.8,0.6133117]
[1772829340762,6.641,1970.6,1969.8,0.6133117]
[1772829340963,7.21218044,1970.6,1969.8,0.6133117]
[1772829341165,7.21761506,1970.6,1969.8,0.6133117]
[1772829341367,0.00543462,1970.6,1969.8,0.6133117]
[1772829341863,0.57118044,1971.1,1970.0,0.59651334]
[1772829342665,0.57486216,1971.1,1970.0,0.59651334]
[1772829343061,0.00368172,1971.1,1970.2,0.59651334]
[1772829344768,0.57118044,1971.5,1970.4,0.59651334]
[1772829345666,0.57667316,1971.5,1970.4,0.59651334]
[1772829346369,0.57118044,1971.3,1970.6,0.59651334]
[1772829347571,0.57118044,1971.3,1970.8,0.59651334]
[1772829347772,0.57667316,1971.5,1970.8,0.59651334]
[1772829347968,0.57667316,1971.5,1971.0,0.59651334]
[1772829348370,0.57667316,1971.5,1971.0,0.60910111]
[1772829348568,0.00549272,1971.5,1971.0,0.60910111]
[1772829348768,0.57118044,1971.7,1971.0,0.60910111]
[1772829349169,0.57118044,1971.9,1971.0,0.60910111]
[1772829349571,0.57118044,1971.9,1971.0,0.59651334]
[1772829349772,0.57629659,1971.9,1971.2,0.59651334]
[1772829350070,0.57629659,1971.9,1971.2,0.6025112]
[1772829350267,0.57629659,1971.9,1971.4,0.59651334]
[1772829352484,0.57629659,1971.9,1971.5,0.01258777]
[1772829354582,0.57629659,1971.9,1971.2,0.00599786]
[1772829354877,0.57629659,1971.9,1971.2,0.6025112]
[1772829361589,0.00511615,1971.9,1971.2,0.6025112]
[1772829364184,0.58961984,1972.6,1971.3,0.55184176]
[1772829364588,0.58961984,1972.3,1971.3,0.55184176]
[1772829364793,0.58961984,1972.1,1971.3,0.55184176]
[1772829365091,0.58961984,1972.5,1971.3,0.55184176]
[1772829365291,0.594269,1972.5,1971.3,0.55184176]
[1772829366491,0.594269,1972.5,1971.5,0.55184176]
[1772829367594,0.00464916,1972.5,1971.5,0.55184176]
[1772829367794,0.594269,1972.5,1971.5,0.55184176]
[1772829369491,0.58961984,1973.0,1972.0,0.55184176]
[1772829369691,0.58961984,1973.0,1972.1,0.55184176]
[1772829370394,0.59457463,1973.0,1972.1,0.55184176]
[1772829373506,0.00495479,1973.0,1972.1,0.55184176]
[1772829374198,0.00495479,1973.0,1972.3,0.55184176]
[1772829374405,0.59457463,1973.0,1972.3,0.55184176]
[1772829374604,0.58961984,1973.5,1972.4,0.55184176]
[1772829375101,0.58961984,1973.3,1972.4,0.55184176]
[1772829375502,0.59412669,1973.3,1972.4,0.55184176]
[1772829375702,0.58961984,1973.1,1972.4,0.55184176]
[1772829380914,0.58961984,1972.9,1971.9,0.55184176]
[1772829381607,0.58961984,1972.7,1971.9,0.55184176]
[1772829381805,0.58961984,1972.5,1971.6,0.55184176]
[1772829386513,0.58961984,1972.7,1971.6,0.55184176]
[1772829388718,0.58961984,1972.7,1971.8,0.55184176]
[1772829389118,0.58961984,1972.9,1971.8,0.55184176]
[1772829389419,6.99839049,1972.8,1971.8,0.55184176]
[1772829389620,0.58961984,1972.8,1972.0,0.55184176]
[1772829391021,0.58961984,1972.6,1972.0,0.55184176]
[1772829395019,0.58961984,1972.6,1971.8,0.5476581]
[1772829395321,0.58961984,1972.6,1971.9,0.5476581]
[1772829395717,0.54645752,1972.4,1971.9,0.5476581]
[1772829406330,0.54645752,1972.6,1971.9,0.5476581]
[1772829406731,6.43575933,1972.5,1971.9,0.5476581]
[1772829406929,0.54645752,1972.5,1971.9,0.5476581]
[1772829410133,0.54645752,1972.7,1971.9,0.5476581]
[1772829410328,6.42483903,1972.6,1971.9,0.5476581]
[1772829410534,5.88671889,1972.5,1971.9,0.5476581]
[1772829410734,0.54645752,1972.7,1971.9,0.5476581]
[1772829410934,6.97153088,1972.6,1971.9,0.5476581]
[1772829411136,4.72095549,1972.8,1971.9,0.5476581]
[1772829411334,1.08488655,1972.7,1971.9,0.5476581]
[1772829411635,0.54645752,1972.7,1971.9,0.5476581]
[1772829413532,0.54645752,1972.5,1971.9,0.5476581]
[1772829415031,0.54645752,1972.3,1971.7,0.5476581]
[1772829415835,0.59118193,1972.2,1971.7,0.5476581]
[1772829421942,0.59118193,1972.2,1971.5,0.58915883]
[1772829427847,5.86928432,1972.1,1971.5,0.58915883]
[1772829428141,0.56122941,1972.0,1971.5,0.58915883]
[1772829428345,0.56122941,1972.0,1971.3,0.58915883]
[1772829431544,0.56122941,1971.8,1971.2,0.00599786]
[1772829431749,0.56122941,1971.6,1971.2,0.00599786]
[1772829431951,0.56122941,1971.6,1971.2,0.59515669]
[1772829433055,0.56122941,1971.6,1971.2,0.00599786]
[1772829434254,0.56122941,1971.6,1971.2,0.59515669]
[1772829434453,0.56634124,1971.8,1971.2,0.59515669]
[1772829434656,0.00511183,1971.8,1971.2,15.50315669]
[1772829434851,0.56122941,1972.1,1971.3,0.58915883]
[1772829435849,0.00440925,1972.1,1971.3,0.58915883]
[1772829436157,0.56122941,1972.4,1971.5,0.58915883]
[1772829436657,0.56122941,1972.7,1971.5,0.58915883]
[1772829436855,0.56122941,1972.9,1971.7,0.58915883]
[1772829437060,6.42076049,1972.8,1971.9,0.58915883]
[1772829437360,0.56581622,1972.8,1971.9,0.58915883]
[1772829437656,0.56581622,1972.8,1972.0,0.58915883]
[1772829438058,0.00458681,1972.8,1972.0,0.58915883]
[1772829438553,0.00458681,1972.8,1972.1,0.58915883]
[1772829439955,0.56122941,1973.1,1972.1,0.58915883]
[1772829441061,0.56664834,1973.1,1972.1,0.58915883]
[1772829441461,0.00541893,1973.1,1972.1,0.58915883]
[1772829441858,0.56664834,1973.1,1972.1,0.58915883]
[1772829442751,0.56664834,1973.1,1972.3,0.58915883]
[1772829442952,0.00541893,1973.1,1972.5,0.58915883]
[1772829443660,0.56664834,1973.1,1972.5,0.58915883]
[1772829444055,0.00541893,1973.1,1972.5,0.58915883]
[1772829444557,0.56122941,1973.4,1972.5,0.58915883]
[1772829445558,0.56602983,1973.4,1972.5,0.58915883]
[1772829445964,0.56602983,1973.4,1972.4,0.58915883]
[1772829452968,0.56555772,1973.2,1972.1,0.59755832]
[1772829453166,0.56555772,1973.2,1972.3,0.59755832]
[1772829454367,0.56555772,1973.2,1972.4,0.59755832]
[1772829454568,0.56555772,1973.2,1972.3,15.62255832]
[1772829454763,0.56555772,1973.2,1972.4,0.59755832]
[1772829455067,0.56555772,1973.2,1972.3,15.025]
[1772829455068,0.56555772,1973.2,1972.3,15.62255832]
[1772829455666,0.56555772,1973.2,1972.4,0.59755832]
[1772829457069,0.56555772,1973.3,1972.4,0.59755832]
[1772829458566,0.56555772,1973.3,1972.2,15.044]
[1772829458567,0.57035814,1973.4,1972.6,0.59755832]
[1772829458766,0.57035814,1973.4,1972.8,0.59755832]
[1772829459462,0.00480042,1973.4,1972.8,0.59755832]
[1772829460367,0.56555772,1973.6,1972.8,0.59755832]
[1772829460865,0.56555772,1973.6,1972.9,0.59755832]
[1772829461268,4.20747016,1974.2,1973.0,0.59755832]
[1772829461464,0.56555772,1974.4,1973.0,0.59755832]
[1772829461768,0.56555772,1974.4,1973.1,40.8]
[1772829462070,0.56555772,1974.4,1973.3,0.59755832]
[1772829462271,0.56964649,1974.4,1973.3,0.59755832]
[1772829462964,0.56555772,1974.8,1973.5,0.59755832]
[1772829463365,0.56555772,1974.8,1973.7,0.59755832]
[1772829463965,0.56989707,1974.8,1973.7,0.59755832]
[1772829464468,0.56989707,1974.8,1973.8,0.59755832]
[1772829465368,0.56989707,1974.8,1974.0,0.59755832]
[1772829465568,0.56989707,1974.8,1974.1,0.59755832]
[1772829465971,0.56989707,1974.8,1974.0,0.00568319]
[1772829466766,0.56989707,1974.8,1974.0,0.60324151]
[1772829468273,0.00433935,1974.8,1974.0,0.60324151]
[1772829470766,0.56989707,1974.8,1974.1,0.59755832]
[1772829473174,0.56989707,1974.8,1974.0,0.60324151]
[1772829473676,0.56989707,1974.8,1974.0,0.00568319]
[1772829473878,0.56555772,1974.6,1973.4,0.59755832]
[1772829474878,0.56555772,1974.6,1973.4,0.60273131]
[1772829478576,0.55582012,1974.4,1973.4,0.60273131]
[1772829480174,0.55582012,1974.2,1973.4,0.00517299]
[1772829481273,0.55582012,1974.0,1973.4,0.00517299]
[1772829481478,0.55582012,1974.0,1973.1,0.60111112]
[1772829482480,0.55582012,1974.0,1973.1,0.60712107]
[1772829486483,0.59835354,1974.2,1973.1,0.60712107]
[1772829488382,0.60269289,1974.8,1973.8,0.58619166]
[1772829488581,0.60269289,1974.8,1973.2,6.23377]
[1772829488582,0.60269289,1974.8,1974.0,0.58619166]
[1772829488885,0.60269289,1974.8,1973.7,0.58619166]
[1772829489677,0.59835354,1974.6,1973.7,0.58619166]
[1772829490785,0.60269289,1974.8,1973.7,0.58619166]
[1772829492985,0.60269289,1974.8,1973.8,0.58619166]
[1772829495983,0.59835354,1974.6,1973.8,0.58619166]
[1772829497288,0.59835354,1974.6,1973.5,0.58619166]
[1772829498082,0.59835354,1974.4,1973.5,0.58619166]
[1772829499380,0.59835354,1974.2,1973.5,0.58619166]
[1772829500685,0.59835354,1974.2,1973.2,2.08704309]
[1772829500883,0.59835354,1974.0,1973.1,0.59220161]
[1772829501289,0.59835354,1973.8,1973.1,0.59220161]
[1772829502494,0.59835354,1974.2,1973.1,0.59220161]
[1772829502793,6.9688334,1974.1,1973.1,0.59220161]
[1772829502992,0.54311188,1974.0,1973.1,0.59220161]
[1772829503194,0.59835354,1974.1,1973.1,0.59220161]
[1772829503389,4.17874282,1974.3,1973.3,0.58619166]
[1772829503693,0.59835354,1974.1,1973.4,0.58619166]
[1772829504686,0.59835354,1974.1,1973.2,0.58619166]
[1772829505286,0.59835354,1973.9,1973.2,0.58619166]
[1772829507791,0.59835354,1973.9,1973.1,0.00600995]
[1772829507992,0.59835354,1973.7,1973.1,0.00600995]
[1772829508998,0.59835354,1973.7,1973.1,0.59220161]
[1772829512896,0.59835354,1973.7,1972.8,0.5900691]
[1772829513092,0.5716896,1973.5,1972.8,0.5900691]
[1772829513297,0.5716896,1973.5,1972.4,0.5900691]
[1772829514002,0.5716896,1973.3,1972.4,0.5900691]
[1772829514302,0.57612589,1973.3,1972.4,0.59520497]
[1772829520806,0.92870252,1973.3,1972.4,0.59520497]
[1772829521002,0.5716896,1973.2,1972.4,0.59520497]
[1772829524315,0.5716896,1973.2,1972.4,0.00513587]
[1772829524515,0.5716896,1973.2,1972.4,0.59520497]
[1772829524710,0.5716896,1973.0,1972.4,0.59520497]
[1772829525309,0.5716896,1973.0,1972.4,0.00513587]
[1772829525705,0.5716896,1973.0,1972.1,0.5900691]
[1772829526818,0.5716896,1973.0,1972.1,0.59502673]
[1772829529517,0.5716896,1972.8,1972.1,0.00495763]
[1772829529723,0.5716896,1972.6,1972.1,0.00495763]
[1772829529922,0.5716896,1972.6,1972.0,0.5900691]
[1772829530910,0.5716896,1972.6,1972.0,0.5936583]
[1772829533020,10.82174282,1973.1,1972.0,0.5936583]
[1772829533021,0.5716896,1973.0,1972.0,0.5936583]
[1772829533222,0.5716896,1972.8,1972.0,0.5936583]
[1772829535316,0.5716896,1973.0,1972.0,0.5936583]
[1772829535620,6.93843723,1972.9,1972.0,0.5936583]
[1772829535820,1.12406785,1972.8,1972.0,0.5936583]
[1772829536022,0.58026438,1972.8,1972.0,0.5936583]
[1772829537316,0.58026438,1973.0,1972.0,0.5936583]
[1772829537523,6.95086286,1972.9,1972.0,0.5936583]
[1772829537821,0.58026438,1972.9,1972.0,0.5936583]
[1772829539219,6.643,1973.1,1972.2,0.54474295]
[1772829539220,0.58026438,1973.1,1972.2,0.54474295]
[1772829539416,0.58026438,1972.9,1972.2,0.54474295]
[1772829539713,0.58026438,1972.9,1972.3,0.54474295]
[1772829541723,0.55874,1973.1,1972.3,0.54474295]
[1772829541922,1.10328274,1973.0,1972.3,0.54474295]
[1772829542125,0.55874,1973.0,1972.3,0.54474295]
[1772829543728,0.55874,1973.2,1972.3,0.54474295]
[1772829543928,6.93674205,1973.1,1972.3,0.54474295]
[1772829544226,6.93674205,1973.0,1972.3,0.54474295]
[1772829544527,0.55874,1973.0,1972.3,0.54474295]
[1772829548031,0.55874,1973.2,1972.3,0.54474295]
[1772829548329,0.56317629,1973.3,1972.3,0.79825295]
[1772829548527,0.00443629,1973.3,1972.6,0.5786068]
[1772829548831,0.00443629,1973.3,1972.7,0.5786068]
[1772829549233,0.55874,1973.5,1972.7,0.5786068]
[1772829549530,0.55874,1973.7,1972.7,0.5786068]
[1772829549726,6.93757901,1973.6,1972.7,0.5786068]
[1772829549928,0.55874,1973.8,1972.9,0.5786068]
[1772829550127,0.00418727,1973.8,1972.9,0.5786068]
[1772829550327,0.00418727,1973.8,1973.1,0.5786068]
[1772829550534,6.642,1974.4,1973.3,0.5786068]
[1772829550535,0.55874,1974.2,1973.3,0.5786068]
[1772829550731,0.55874,1974.2,1973.4,0.5786068]
[1772829550934,0.55874,1974.5,1973.4,0.5786068]
[1772829551135,0.55874,1974.5,1973.6,0.5786068]
[1772829551532,0.56330837,1974.5,1973.6,0.582746]
[1772829551929,0.00456837,1974.5,1973.6,0.582746]
[1772829552433,0.56330837,1974.5,1973.6,0.582746]
[1772829552629,0.56330837,1974.5,1973.8,0.5786068]
[1772829553136,0.00456837,1974.5,1973.8,0.5786068]
[1772829553434,0.55874,1974.7,1973.8,0.5786068]
[1772829553630,0.55874,1975.1,1973.8,0.5786068]
[1772829554238,0.55874,1975.1,1973.9,0.5786068]
[1772829554437,0.56517717,1975.1,1973.9,0.5786068]
[1772829555439,0.55874,1974.9,1973.9,0.5786068]
[1772829560146,0.55874,1974.7,1973.8,0.5786068]
[1772829560346,0.55874,1974.5,1973.6,0.0041392]
[1772829560844,0.55874,1974.5,1973.6,0.582746]
[1772829561144,0.55874,1974.5,1973.6,0.0041392]
[1772829561342,0.55874,1974.5,1973.6,0.582746]
[1772829563645,0.55874,1974.8,1973.6,0.582746]
[1772829565543,0.55874,1974.8,1973.8,0.5786068]
[1772829565935,0.55874,1975.0,1973.9,0.5786068]
[1772829566142,0.00643717,1975.1,1974.3,0.5786068]
[1772829567143,0.00643717,1975.1,1974.5,0.5786068]
[1772829568343,0.55874,1975.4,1974.5,0.5786068]
[1772829568541,0.55874,1975.7,1974.6,0.8318268]
[1772829568745,1.3554382,1976.0,1974.7,0.5786068]
[1772829568746,0.55874,1975.9,1974.7,0.5786068]
[1772829569145,0.55874,1975.9,1974.9,0.5786068]
[1772829569340,0.56266567,1975.9,1974.9,0.5786068]
[1772829569541,0.56266567,1975.9,1975.1,0.5786068]
[1772829569740,0.00392567,1975.9,1975.1,0.58446492]
[1772829569940,0.55874,1976.2,1975.1,0.58446492]
[1772829570146,0.55874,1976.2,1975.3,0.5786068]
[1772829570948,0.5623025,1976.2,1975.3,0.5786068]
[1772829572857,0.54462561,1976.1,1975.3,0.5786068]
[1772829574253,0.0035625,1976.2,1975.3,0.5786068]
[1772829574852,0.54818811,1976.2,1975.3,0.5786068]
[1772829575958,0.54462561,1976.6,1975.4,0.58584631]
[1772829576358,0.54462561,1976.6,1975.6,0.58584631]
[1772829576651,0.54462561,1976.6,1975.8,0.58584631]
[1772829577150,0.54822564,1976.6,1975.8,0.58584631]
[1772829577353,0.54462561,1976.8,1975.8,0.58584631]
[1772829577549,0.54462561,1977.0,1976.0,0.58584631]
[1772829578357,0.54927819,1977.0,1976.0,0.58584631]
[1772829579260,0.00465258,1977.0,1976.0,0.58584631]
[1772829579853,0.54462561,1977.3,1976.2,0.58584631]
[1772829580457,0.54462561,1977.3,1976.4,0.58584631]
[1772829581060,0.55065153,1977.3,1976.4,0.58584631]
[1772829588758,0.55065153,1977.3,1976.5,0.58584631]
[1772829589064,0.54462561,1977.6,1976.7,0.58584631]
[1772829590156,0.55117741,1977.6,1976.7,0.58584631]
[1772829590556,0.54462561,1977.4,1976.5,0.58963403]
[1772829590867,0.54462561,1977.2,1976.5,0.00378772]
[1772829591063,0.54462561,1977.0,1975.8,0.58584631]
[1772829591960,0.54462561,1976.8,1975.8,0.59198096]
[1772829592263,0.54462561,1976.8,1975.8,0.00613465]
[1772829593569,0.54462561,1976.8,1975.8,0.59198096]
[1772829598173,0.57095219,1976.6,1975.8,0.59198096]
[1772829601278,0.57095219,1976.8,1975.8,0.59198096]
[1772829602780,0.55813156,1977.1,1976.1,0.5525401]
[1772829603080,0.55813156,1977.1,1976.3,0.5525401]
[1772829603377,0.55813156,1976.9,1976.1,0.5525401]
[1772829604573,0.55813156,1976.7,1975.9,0.5525401]
[1772829604780,0.55813156,1976.5,1975.9,0.5525401]
[1772829605180,0.55813156,1976.3,1975.8,0.55867475]
[1772829605378,0.55813156,1976.3,1975.8,0.00613465]
[1772829605572,0.55813156,1976.3,1975.8,0.55867475]
[1772829605772,0.55813156,1976.3,1975.8,0.00613465]
[1772829605972,0.55813156,1976.3,1975.4,0.5525401]
[1772829606177,0.55813156,1976.1,1975.4,0.5525401]
[1772829606574,0.55813156,1976.1,1975.2,0.5525401]
[1772829606881,0.55813156,1975.9,1975.2,0.55655839]
[1772829609687,0.55813156,1975.9,1975.2,0.00401829]
[1772829610590,0.55813156,1975.9,1974.9,2.08050885]
[1772829610990,0.55813156,1975.7,1974.9,2.08050885]
[1772829611592,0.55813156,1975.7,1974.9,2.08444373]
[1772829612091,0.55813156,1975.7,1974.9,0.00393488]
[1772829613894,0.55813156,1975.7,1974.9,0.55647498]
[1772829614092,0.55813156,1975.9,1975.0,0.5525401]
[1772829614492,0.55813156,1975.9,1975.1,0.5525401]
[1772829614694,0.56312074,1976.1,1975.1,0.5525401]
[1772829616193,0.56312074,1976.1,1975.2,0.5525401]
[1772829616797,0.56312074,1976.1,1975.1,0.25315]
[1772829616798,0.56312074,1976.1,1975.4,0.5525401]
[1772829617993,0.00498918,1976.1,1975.4,0.5525401]
[1772829620792,0.00498918,1976.1,1975.4,15.4455401]
[1772829620988,0.00498918,1976.1,1975.5,0.5525401]
[1772829621898,0.53403584,1976.6,1975.7,0.5525401]
[1772829622689,0.00502953,1976.6,1975.7,0.5525401]
[1772829624094,0.53697026,1976.6,1975.7,0.5525401]
[1772829626194,0.53330957,1976.8,1976.0,0.5525401]
[1772829626397,0.53330957,1977.0,1976.3,0.5525401]
[1772829626591,6.81957756,1977.5,1976.3,0.5525401]
[1772829626798,2.64336233,1977.5,1976.6,0.60133882]
[1772829627000,2.64336233,1977.5,1976.7,0.60133882]
[1772829627302,2.64822509,1977.5,1976.7,0.60657714]
[1772829627497,2.64822509,1977.5,1976.8,0.6018298]
[1772829628495,2.63482707,1978.2,1977.3,0.6018298]
[1772829628700,19.79799611,1978.3,1977.3,0.6018298]
[1772829628895,6.60600155,1978.2,1977.1,0.6018298]
[1772829629099,0.25276,1978.2,1977.1,0.6018298]
[1772829629501,0.25871792,1978.2,1977.1,0.6018298]
[1772829631101,0.25871792,1978.2,1977.0,14.914]
[1772829631102,0.08801181,1978.6,1977.3,0.60418212]
[1772829631295,0.60281042,1978.7,1977.3,0.60418212]
[1772829631499,0.2527,1978.7,1977.3,0.60418212]
[1772829631994,6.631,1978.9,1977.3,0.60418212]
[1772829632293,6.63587267,1978.9,1977.3,0.60418212]
[1772829632494,0.00487267,1978.9,1977.7,0.60531057]
[1772829632701,0.00487267,1978.9,1977.9,0.60531057]
[1772829633096,0.00487267,1978.9,1977.9,41.40531057]
[1772829633297,0.00487267,1978.9,1978.0,0.60531057]
[1772829633495,0.00487267,1978.9,1977.8,0.60716789]
[1772829634399,2.15455428,1979.6,1978.6,2.76561316]
[1772829634599,10.62812778,1980.6,1979.1,0.60716789]
[1772829634807,6.31790714,1980.5,1979.1,0.60716789]
[1772829635001,0.25247,1980.6,1979.1,0.60716789]
[1772829635300,6.46367,1980.4,1979.1,0.00592014]
[1772829635508,0.25254,1980.0,1978.7,0.61048599]
[1772829636108,6.629,1980.2,1978.7,0.61048599]
[1772829636505,6.629,1980.2,1978.7,0.61677629]
[1772829637602,3.44948916,1980.6,1978.7,0.61677629]
[1772829637603,0.3450078,1980.6,1979.0,0.61217491]
[1772829638208,0.35712442,1980.6,1979.2,0.61217491]
[1772829638409,0.00462016,1980.6,1979.2,0.61217491]
[1772829638806,0.00462016,1980.6,1979.5,0.61217491]
[1772829639012,0.00462016,1980.6,1979.7,0.61217491]
[1772829639308,0.46559627,1981.3,1979.7,0.61217491]
[1772829639513,0.46559627,1981.3,1979.9,0.67345107]
[1772829639913,2.76561316,1981.2,1979.9,0.67345107]
[1772829640214,0.0055034,1981.2,1979.9,0.67345107]
[1772829641809,6.93063094,1982.9,1980.9,0.66822849]
[1772829642016,2.76561316,1982.1,1980.9,0.66822849]
[1772829642509,0.25228,1982.0,1980.9,0.66822849]
[1772829642709,0.25228,1982.0,1980.2,0.66822849]
[1772829643013,0.00488026,1982.0,1980.5,0.66822849]
[1772829643206,0.00488026,1982.0,1980.4,2.76561316]
[1772829643207,0.00488026,1982.0,1980.9,0.66822849]
[1772829646117,0.00488026,1982.0,1981.1,0.66442535]
[1772829648319,6.62,1983.2,1981.3,0.66017445]
[1772829648514,0.25214,1983.1,1981.3,0.66017445]
[1772829648716,6.54266972,1983.1,1981.3,0.66017445]
[1772829648916,0.33994972,1983.1,1981.3,0.66017445]
[1772829649120,6.87107,1983.7,1981.7,0.66017445]
[1772829649315,6.87525262,1983.7,1981.8,0.6634962]
[1772829649521,2.76561316,1983.5,1981.8,0.6634962]
[1772829649717,0.34559661,1983.6,1981.9,0.9157862]
[1772829649922,0.34559661,1983.6,1982.1,0.6634962]
[1772829650423,0.00418262,1983.7,1982.1,0.6634962]
[1772829650622,0.00418262,1983.7,1982.5,0.6634962]
[1772829650817,0.00418262,1983.7,1982.7,0.6634962]
[1772829651519,0.00418262,1983.7,1982.9,0.6612597]
[1772829651726,0.00418262,1983.7,1982.7,0.6612597]
[1772829660634,0.25207,1983.6,1982.2,40.8]
[1772829660834,0.25207,1983.6,1982.3,0.71071363]
[1772829661436,0.00418262,1983.7,1982.3,0.71071363]
[1772829662538,0.25625262,1983.7,1982.3,0.71071363]
[1772829664137,0.25212,1983.3,1982.3,0.71071363]
[1772829664540,6.4544,1983.3,1981.8,0.70163008]
[1772829665841,0.25217,1982.9,1981.8,0.70163008]
[1772829667049,0.25223,1982.4,1981.4,0.54571624]
[1772829667345,0.40403468,1982.3,1981.4,0.54571624]
[1772829667849,0.4031368,1982.1,1981.4,0.00597556]
[1772829668145,0.4031368,1982.1,1981.2,0.54571624]
[1772829668946,0.40946983,1982.3,1981.2,0.55066221]
[1772829669447,0.25,1982.0,1981.2,0.55066221]
[1772829671041,0.40372616,1981.9,1981.2,0.55066221]
[1772829671650,0.40372616,1981.9,1981.2,0.00494597]
[1772829671846,0.40372616,1981.9,1981.0,0.54571624]
[1772829672045,0.43136174,1981.7,1981.0,0.54571624]
[1772829672247,0.43136174,1981.3,1979.9,0.54571624]
[1772829672945,0.43136174,1981.3,1979.9,0.54975149]
[1772829673541,0.25238,1981.2,1979.9,0.54975149]
[1772829673741,0.44273203,1981.1,1979.9,0.54975149]
[1772829675652,0.80760243,1981.0,1979.9,0.54975149]
[1772829675849,0.4439247,1980.9,1979.9,0.54975149]
[1772829676148,0.44825396,1980.9,1979.9,0.54975149]
[1772829677652,0.25243,1980.8,1979.9,0.54975149]
[1772829677853,0.46674611,1980.5,1979.5,0.54571624]
[1772829678951,0.46674611,1980.5,1979.5,0.5508288]
[1772829679342,0.45159011,1980.9,1979.5,0.5508288]
[1772829679743,0.00432926,1980.9,1979.7,0.54571624]
[1772829680750,0.45159011,1980.9,1979.7,0.54571624]
[1772829681351,0.45159011,1980.9,1979.9,0.54571624]
[1772829681352,0.00432926,1980.9,1979.9,0.54571624]
[1772829681549,0.44140678,1980.9,1979.9,0.54571624]
[1772829683753,0.00432926,1980.9,1979.9,0.54571624]
[1772829685146,0.43890287,1981.3,1980.1,0.54571624]
[1772829685457,0.44323213,1981.5,1980.1,0.54571624]
[1772829685653,0.44271529,1981.3,1980.1,0.54571624]
[1772829686250,0.44756036,1981.3,1980.1,0.54571624]
[1772829687050,0.44271529,1981.1,1980.1,0.54571624]
[1772829689750,0.44271529,1981.1,1979.6,14.908]
[1772829689751,0.42550982,1980.9,1979.6,0.54571624]
[1772829694255,0.93873274,1980.8,1979.6,0.54571624]
[1772829694463,0.37940582,1980.8,1979.6,0.54571624]
[1772829695564,0.3801811,1981.0,1979.6,0.54571624]
[1772829695760,0.56004631,1980.9,1979.6,0.54571624]
[1772829695964,0.3801811,1980.9,1979.6,0.54571624]
[1772829696265,0.56068364,1980.8,1979.6,0.54571624]
[1772829696466,0.3801811,1980.9,1979.6,0.54571624]
[1772829696665,0.9407099,1980.8,1979.6,0.54571624]
[1772829696964,0.3801811,1980.8,1979.6,0.54571624]
[1772829698366,0.94206655,1980.7,1979.6,0.54571624]
[1772829698567,0.38072581,1980.7,1979.6,0.54571624]
[1772829698766,0.38072581,1980.5,1979.6,0.54571624]
[1772829699368,0.56167943,1980.4,1979.6,0.54571624]
[1772829699570,0.38072581,1980.5,1979.6,0.54571624]
[1772829699762,0.56167916,1980.4,1979.6,0.54571624]
[1772829700067,0.38072581,1980.5,1979.6,0.54571624]
[1772829700263,0.38037191,1980.3,1979.6,0.54571624]
[1772829700468,0.38037191,1980.1,1979.6,0.54571624]
[1772829701267,0.56256059,1980.0,1979.6,0.54571624]
[1772829701461,0.38426955,1980.3,1979.6,0.54571624]
[1772829701664,6.36417198,1980.2,1979.6,0.54571624]
[1772829701865,0.56250558,1980.1,1979.6,0.54571624]
[1772829702065,0.56250558,1980.0,1979.6,0.54571624]
[1772829702267,0.38426955,1980.2,1979.6,0.54571624]
[1772829702562,0.5625927,1980.1,1979.6,0.54571624]
[1772829702763,4.1563953,1980.5,1979.6,0.54571624]
[1772829702969,0.55968125,1980.4,1979.6,0.54571624]
[1772829703166,5.80405522,1980.3,1979.6,0.54571624]
[1772829703360,5.80405522,1980.2,1979.6,0.54571624]
[1772829703566,0.55968125,1980.4,1979.6,0.54571624]
[1772829703767,5.80359242,1980.3,1979.6,0.54571624]
[1772829703967,5.80359242,1980.2,1979.6,0.54571624]
[1772829704170,0.55968125,1980.4,1979.6,0.54571624]
[1772829704470,5.80299418,1980.3,1979.6,0.54571624]
[1772829704672,5.80299418,1980.2,1979.6,0.54571624]
[1772829704865,4.1563953,1980.5,1979.6,0.54571624]
[1772829705067,5.80312149,1980.5,1979.6,0.54571624]
[1772829705271,5.80312149,1980.4,1979.6,0.54571624]
[1772829705570,0.55968125,1980.6,1979.6,0.54571624]
[1772829705770,5.80344539,1980.5,1979.6,0.54571624]
[1772829705961,5.80344539,1980.4,1979.6,0.54571624]
[1772829706169,0.55968125,1980.4,1979.6,0.54571624]
[1772829706971,0.55968125,1980.6,1979.6,0.54571624]
[1772829707166,5.803606,1980.5,1979.6,0.54571624]